bitfinex/quotes_BTCUSD_20211001
["timestamp","ask_amount","ask_price","bid_price","bid_amount"]
[1633079820368,0.33467,44834.0,44827.0,0.5]
[1633079820568,0.07620873,44830.0,44825.0,1.0204]
[1633079820773,0.07620873,44830.0,44823.0,0.23407846]
[1633079820774,0.34421433,44829.0,44823.0,0.23407846]
[1633079820975,0.34421433,44829.0,44823.0,0.22307846]
[1633079820976,0.34475831,44829.0,44823.0,0.22307846]
[1633079822369,0.34475831,44829.0,44826.0,0.23838206]
[1633079822770,0.00054398,44829.0,44828.0,0.75993649]
[1633079822969,0.03054398,44829.0,44828.0,0.85993649]
[1633079823172,0.03054398,44829.0,44828.0,2.03993649]
[1633079823368,0.03054398,44829.0,44828.0,4.39628842]
[1633079824171,0.03054398,44829.0,44828.0,3.10635193]
[1633079824370,0.00054398,44829.0,44828.0,3.05635193]
[1633079824970,0.03054398,44829.0,44828.0,3.07835193]
[1633079825371,0.03054398,44829.0,44828.0,3.05635193]
[1633079825372,0.00054398,44829.0,44828.0,3.05635193]
[1633079826970,0.03054398,44829.0,44828.0,3.07935193]
[1633079828371,0.00054398,44829.0,44828.0,3.05635193]
[1633079828974,0.03054398,44829.0,44828.0,3.07935193]
[1633079829578,0.03054398,44829.0,44828.0,2.32935193]
[1633079829579,0.0317934,44829.0,44828.0,2.32935193]
[1633079830382,0.0017934,44829.0,44828.0,2.30635193]
[1633079831177,0.03054398,44829.0,44828.0,2.32635193]
[1633079831577,0.03054398,44829.0,44828.0,2.27635193]
[1633079832579,0.03054398,44829.0,44828.0,2.25635193]
[1633079832778,0.00054398,44829.0,44828.0,2.25635193]
[1633079832978,0.03054398,44829.0,44828.0,2.27535193]
[1633079833581,0.03178662,44829.0,44828.0,2.27535193]
[1633079834581,0.00178662,44829.0,44827.0,0.22308005]
[1633079834980,0.03178662,44829.0,44828.0,0.419]
[1633079835380,0.03178662,44829.0,44828.0,0.019]
[1633079835784,0.03054398,44829.0,44828.0,0.019]
[1633079835982,0.03054398,44829.0,44828.0,0.353628]
[1633079836582,0.00054398,44829.0,44828.0,0.334628]
[1633079836982,0.03054398,44829.0,44828.0,0.55158078]
[1633079837382,0.03054398,44829.0,44828.0,0.354628]
[1633079837585,0.03054398,44829.0,44828.0,0.02]
[1633079838454,0.00054398,44829.0,44827.0,0.22308005]
[1633079838786,0.30243176,44829.0,44826.0,0.24831565]
[1633079839185,0.03179312,44829.0,44826.0,0.24831565]
[1633079839386,0.03179312,44829.0,44820.0,0.1]
[1633079839785,0.00179312,44829.0,44821.0,0.1]
[1633079840386,0.31820406,44829.0,44823.0,0.24679812]
[1633079840787,0.05,44828.0,44823.0,0.24679812]
[1633079840990,0.05054398,44828.0,44823.0,0.24679812]
[1633079841588,0.00054398,44828.0,44823.0,0.24679812]
[1633079842189,0.0712877,44827.0,44823.0,0.24679812]
[1633079842388,0.29183159,44826.0,44823.0,0.24679812]
[1633079842589,0.29237557,44826.0,44823.0,0.24679812]
[1633079843188,0.32137557,44826.0,44823.0,0.24679812]
[1633079843790,0.02954398,44826.0,44823.0,0.24679812]
[1633079843992,0.02954398,44826.0,44823.0,0.34679812]
[1633079844448,0.02954398,44826.0,44823.0,0.24679812]
[1633079846591,0.00054398,44826.0,44823.0,0.24679812]
[1633079846794,0.00054398,44826.0,44823.0,0.34679812]
[1633079847191,0.02954398,44826.0,44823.0,0.34679812]
[1633079848193,0.02954398,44826.0,44823.0,0.1]
[1633079848593,0.00054398,44826.0,44822.0,0.32309629]
[1633079849392,0.00054398,44826.0,44824.0,0.334664]
[1633079849593,0.02954398,44826.0,44824.0,0.334664]
[1633079849795,0.02954398,44826.0,44825.0,1.21828402]
[1633079850593,0.02954398,44826.0,44825.0,1.31828402]
[1633079851194,0.00054398,44826.0,44825.0,1.2]
[1633079851396,0.03054398,44826.0,44825.0,1.2]
[1633079852394,0.03054398,44826.0,44825.0,1.25]
[1633079852597,0.00054398,44826.0,44825.0,0.1]
[1633079852795,0.00054398,44826.0,44823.0,0.24667408]
[1633079852996,0.00054398,44826.0,44823.0,0.34667408]
[1633079853198,0.03054398,44826.0,44823.0,0.34667408]
[1633079854998,0.00054398,44826.0,44823.0,0.34667408]
[1633079855198,0.02954398,44826.0,44823.0,0.34667408]
[1633079856802,0.00054398,44826.0,44823.0,0.34667408]
[1633079857402,0.02954398,44826.0,44823.0,0.34667408]
[1633079858404,0.02954398,44826.0,44823.0,0.19667408]
[1633079858804,0.00054398,44826.0,44823.0,0.19667408]
[1633079859462,0.02954398,44826.0,44823.0,0.53134908]
[1633079859804,0.02954398,44826.0,44823.0,0.58134908]
[1633079861109,0.00054398,44826.0,44823.0,0.58134908]
[1633079861507,0.02954398,44826.0,44823.0,0.58134908]
[1633079861710,0.02954398,44826.0,44823.0,0.24667408]
[1633079861906,0.02954398,44826.0,44823.0,0.34667408]
[1633079862907,0.00054398,44826.0,44823.0,0.34667408]
[1633079863505,0.02954398,44826.0,44823.0,0.34667408]
[1633079864908,0.00054398,44826.0,44823.0,0.34667408]
[1633079865509,0.02954398,44826.0,44823.0,0.34667408]
[1633079865910,0.02954398,44826.0,44823.0,0.19667408]
[1633079866912,0.00054398,44826.0,44823.0,0.19667408]
[1633079867510,0.02954398,44826.0,44823.0,0.19667408]
[1633079867713,0.02954398,44826.0,44823.0,0.58135108]
[1633079867913,0.02954398,44826.0,44823.0,0.80446608]
[1633079868771,0.00054398,44826.0,44823.0,0.80446608]
[1633079869371,0.02954398,44826.0,44823.0,0.80446608]
[1633079870173,0.02954398,44826.0,44824.0,0.334669]
[1633079870372,0.02954398,44826.0,44824.0,0.30120211]
[1633079870774,0.00054398,44826.0,44824.0,0.30120211]
[1633079871371,0.02954398,44826.0,44824.0,0.30120211]
[1633079871975,0.02954398,44826.0,44824.0,0.29795711]
[1633079872776,0.00054398,44826.0,44824.0,0.29795711]
[1633079873576,0.03054398,44826.0,44824.0,0.29795711]
[1633079873978,0.03054398,44826.0,44823.0,0.46978908]
[1633079874784,0.00054398,44826.0,44823.0,0.46978908]
[1633079875185,0.00054398,44826.0,44823.0,0.24667408]
[1633079875385,0.00054398,44826.0,44822.0,0.22309629]
[1633079875586,0.02954398,44826.0,44822.0,0.22309629]
[1633079876787,0.00054398,44826.0,44822.0,0.22309629]
[1633079877589,0.03054398,44826.0,44822.0,0.22309629]
[1633079878788,0.00054398,44826.0,44822.0,0.22309629]
[1633079879388,0.00054398,44826.0,44823.0,0.05]
[1633079879589,0.02954398,44826.0,44823.0,0.05]
[1633079880190,0.02954398,44826.0,44822.0,0.22309629]
[1633079880790,0.00054398,44826.0,44822.0,0.22309629]
[1633079881594,0.03054398,44826.0,44822.0,0.22309629]
[1633079881793,0.03054398,44826.0,44823.0,0.05]
[1633079882796,0.00054398,44826.0,44823.0,0.05]
[1633079883395,0.00054398,44826.0,44823.0,0.384675]
[1633079883595,0.02954398,44826.0,44823.0,0.384675]
[1633079886318,0.02954398,44826.0,44824.0,0.21409268]
[1633079886792,0.00054398,44826.0,44825.0,0.834659]
[1633079886989,0.00054398,44826.0,44825.0,0.884659]
[1633079887590,0.03054398,44826.0,44825.0,0.384659]
[1633079888190,0.03054398,44826.0,44825.0,0.384272]
[1633079888591,0.03054398,44826.0,44825.0,0.734272]
[1633079888993,0.03054398,44826.0,44825.0,0.049613]
[1633079889191,0.03054398,44826.0,44823.0,0.444669]
[1633079889393,0.00054398,44826.0,44823.0,0.62007995]
[1633079889592,0.03054398,44826.0,44823.0,0.62007995]
[1633079890393,0.03054398,44826.0,44824.0,0.02237657]
[1633079890394,0.00054398,44826.0,44824.0,0.02237657]
[1633079890593,0.00054398,44826.0,44824.0,0.00237657]
[1633079890994,0.00054398,44826.0,44824.0,0.33704257]
[1633079891597,0.02954398,44826.0,44824.0,0.33704257]
[1633079892795,0.00054398,44826.0,44824.0,0.33704257]
[1633079893399,0.00054398,44826.0,44824.0,0.00237657]
[1633079893601,0.02954398,44826.0,44824.0,0.00237657]
[1633079894404,0.02954398,44826.0,44825.0,1.0223]
[1633079894604,0.02954398,44826.0,44825.0,0.7223]
[1633079895000,0.00054398,44826.0,44825.0,0.7223]
[1633079895599,0.03054398,44826.0,44825.0,0.7223]
[1633079899395,0.00054398,44826.0,44825.0,0.0223]
[1633079899589,0.00054398,44826.0,44824.0,0.00237657]
[1633079899789,0.03054398,44826.0,44824.0,0.00237657]
[1633079900190,0.334731,44825.0,44824.0,0.00237657]
[1633079900395,0.33527498,44825.0,44824.0,0.00237657]
[1633079900989,0.00054398,44825.0,44824.0,0.00237657]
[1633079901389,0.00054398,44825.0,44824.0,0.60237657]
[1633079901789,0.03054398,44825.0,44824.0,0.60237657]
[1633079902392,0.03054398,44825.0,44824.0,1.00237657]
[1633079902791,0.03054398,44825.0,44824.0,1.02437657]
[1633079903193,0.00054398,44825.0,44824.0,1.35904457]
[1633079903594,0.02954398,44825.0,44824.0,1.35904457]
[1633079903795,0.08632398,44825.0,44824.0,2.53904457]
[1633079905004,0.05732398,44825.0,44824.0,2.53904457]
[1633079905197,0.05732398,44825.0,44824.0,2.13904457]
[1633079905598,0.08632398,44825.0,44824.0,2.13904457]
[1633079906800,0.08632398,44825.0,44824.0,0.95904457]
[1633079907204,0.05732398,44825.0,44824.0,0.95904457]
[1633079907598,0.08632398,44825.0,44824.0,0.95904457]
[1633079908798,0.08632398,44825.0,44824.0,2.13904457]
[1633079909200,0.05732398,44825.0,44824.0,2.13904457]
[1633079909398,0.00054398,44825.0,44824.0,2.13904457]
[1633079909598,0.05732398,44825.0,44824.0,0.95904457]
[1633079909801,0.08632398,44825.0,44824.0,0.95904457]
[1633079910457,0.08632398,44825.0,44824.0,0.89444815]
[1633079911202,0.08632398,44825.0,44824.0,1.66674815]
[1633079911203,0.05732398,44825.0,44824.0,1.66674815]
[1633079911801,0.08732398,44825.0,44824.0,1.66674815]
[1633079912202,0.08732398,44825.0,44824.0,0.91674815]
[1633079913207,0.05732398,44825.0,44824.0,0.91674815]
[1633079914807,0.08732398,44825.0,44824.0,0.91674815]
[1633079917008,0.05732398,44825.0,44824.0,0.91674815]
[1633079917409,0.05732398,44825.0,44824.0,0.94074815]
[1633079917410,0.08732398,44825.0,44824.0,0.94074815]
[1633079918210,0.08732398,44825.0,44824.0,1.04074815]
[1633079918409,0.11732398,44825.0,44824.0,1.06474815]
[1633079919009,0.08732398,44825.0,44824.0,1.04074815]
[1633079919211,0.05732398,44825.0,44824.0,1.01674815]
[1633079920414,0.07982701,44837.0,44825.0,1.2]
[1633079920614,0.07982701,44837.0,44826.0,0.36945495]
[1633079920615,0.00054398,44834.0,44826.0,0.36945495]
[1633079921020,0.00054398,44834.0,44832.0,2.67665093]
[1633079921215,0.00054398,44834.0,44833.0,0.05678]
[1633079923815,0.00054398,44834.0,44833.0,0.07878]
[1633079928618,0.00054398,44834.0,44833.0,0.18878]
[1633079949525,0.00054398,44834.0,44833.0,0.17763665]
[1633079949642,0.00054398,44834.0,44833.0,0.132]
[1633079950441,0.00054398,44834.0,44833.0,0.06740703]
[1633079963956,0.06329956,44837.0,44834.0,0.00138326]
[1633079964159,0.43984478,44840.0,44835.0,0.22307841]
[1633079964160,0.06330547,44838.0,44835.0,0.22307841]
[1633079964616,0.226855,44837.0,44835.0,0.22307841]
[1633079965413,0.06330547,44838.0,44835.0,0.22307841]
[1633079965815,0.06331139,44839.0,44835.0,0.22307841]
[1633079966014,0.226855,44838.0,44835.0,0.22307841]
[1633079966816,0.29015439,44838.0,44835.0,0.22307841]
[1633079967014,0.29015439,44838.0,44836.0,0.00138326]
[1633079967418,0.226855,44838.0,44836.0,0.00138326]
[1633079967615,0.32115241,44838.0,44836.0,0.02038326]
[1633079968015,0.32115241,44838.0,44835.0,0.18231189]
[1633079969619,0.29015241,44838.0,44835.0,0.18231189]
[1633079969820,0.32115241,44838.0,44835.0,0.20131189]
[1633079971219,0.29015241,44838.0,44835.0,0.27263856]
[1633079971418,0.226855,44838.0,44835.0,0.18231189]
[1633079971817,0.226855,44838.0,44835.0,0.20231189]
[1633079971818,0.257855,44838.0,44835.0,0.20231189]
[1633079973620,0.226855,44838.0,44835.0,0.18231189]
[1633079974626,0.226855,44838.0,44835.0,2.19831713]
[1633079974819,0.06330342,44839.0,44835.0,2.19831713]
[1633079975821,0.031,44838.0,44835.0,2.21331713]
[1633079976021,0.031,44838.0,44835.0,4.71790637]
[1633079976221,0.031,44838.0,44835.0,2.70190113]
[1633079977625,0.062,44838.0,44835.0,2.72190113]
[1633079978224,0.062,44838.0,44835.0,0.21731189]
[1633079978422,0.06330342,44839.0,44835.0,0.17731189]
[1633079979026,0.226855,44838.0,44835.0,0.17731189]
[1633079979626,0.226855,44838.0,44835.0,0.19731189]
[1633079980432,0.29018574,44838.0,44835.0,0.17731189]
[1633079980827,0.29018128,44838.0,44835.0,0.17731189]
[1633079981030,0.29018616,44838.0,44835.0,0.17731189]
[1633079981626,0.06333116,44838.0,44835.0,0.17731189]
[1633079983429,0.06334262,44839.0,44835.0,0.17731189]
[1633079984032,0.16606329,44840.0,44835.0,0.17731189]
[1633079984427,0.16606329,44840.0,44835.0,0.19731189]
[1633079984428,0.031,44838.0,44835.0,0.19731189]
[1633079986835,0.062,44838.0,44835.0,0.21731189]
[1633079987634,0.06334303,44839.0,44835.0,0.17731189]
[1633079988038,0.032,44838.0,44835.0,0.17731189]
[1633079988836,0.06334303,44839.0,44835.0,0.17731189]
[1633079990136,0.09534303,44839.0,44835.0,0.17731189]
[1633079990338,0.09534303,44839.0,44835.0,0.11272138]
[1633079990937,0.09534303,44839.0,44836.0,0.334584]
[1633079991138,0.09521579,44839.0,44836.0,0.334584]
[1633079991537,0.16592954,44840.0,44836.0,0.334584]
[1633079992139,0.032,44839.0,44836.0,0.334584]
[1633079994542,0.032,44839.0,44836.0,0.274584]
[1633079995539,0.032,44839.0,44835.0,0.11272138]
[1633079997147,0.032,44839.0,44837.0,0.334572]
[1633079998146,0.032,44839.0,44835.0,0.11272138]
[1633079998744,0.032,44839.0,44837.0,0.11]
[1633079999344,0.032,44839.0,44837.0,0.44457]
[1633080000146,0.032,44839.0,44838.0,0.6370107]
[1633080000351,0.032,44839.0,44838.0,0.63827543]
[1633080000548,0.032,44839.0,44838.0,0.76057543]
[1633080000748,0.032,44839.0,44838.0,1.82215257]
[1633080000950,0.032,44839.0,44838.0,1.82339509]
[1633080001147,0.032,44839.0,44838.0,2.02399231]
[1633080001347,0.0001,44839.0,44838.0,3.20399231]
[1633080001546,0.06328058,44852.0,44839.0,1.35]
[1633080001748,0.05,44853.0,44852.0,0.09487432]
[1633080001949,0.05,44853.0,44852.0,0.47113582]
[1633080002346,0.05,44853.0,44852.0,0.59343582]
[1633080002746,0.05,44853.0,44852.0,0.4985615]
[1633080003147,0.05,44853.0,44852.0,0.70161423]
[1633080003549,0.083,44853.0,44852.0,0.70161423]
[1633080004152,0.05,44853.0,44852.0,0.70161423]
[1633080004548,0.05,44853.0,44852.0,0.44664181]
[1633080004750,0.05,44853.0,44852.0,0.24358908]
[1633080004949,0.05,44853.0,44852.0,0.0223]
[1633080005749,0.05,44853.0,44852.0,0.22684381]
[1633080005950,0.05,44853.0,44852.0,0.52895003]
[1633080006748,0.05,44853.0,44852.0,0.32440622]
[1633080007950,0.05,44853.0,44852.0,0.42440622]
[1633080008954,0.05,44853.0,44852.0,0.0223]
[1633080010156,0.05,44853.0,44852.0,0.43987722]
[1633080010957,0.05,44853.0,44852.0,0.41757722]
[1633080011158,7.101e-05,44856.0,44852.0,0.41757722]
[1633080011558,7.101e-05,44856.0,44855.0,1.0512596]
[1633080011957,7.101e-05,44856.0,44855.0,0.1512596]
[1633080012161,7.101e-05,44856.0,44855.0,0.6012596]
[1633080012362,7.101e-05,44856.0,44855.0,0.6]
[1633080012756,7.101e-05,44856.0,44855.0,0.1]
[1633080012957,7.101e-05,44856.0,44853.0,0.37293802]
[1633080013158,7.101e-05,44856.0,44853.0,0.27293802]
[1633080013359,7.101e-05,44856.0,44854.0,0.1]
[1633080014556,7.101e-05,44856.0,44853.0,0.37293802]
[1633080014757,7.101e-05,44856.0,44853.0,0.27293802]
[1633080014956,7.101e-05,44856.0,44853.0,0.37263264]
[1633080017826,7.101e-05,44856.0,44853.0,0.15]
[1633080018023,7.101e-05,44856.0,44853.0,0.05]
[1633080018223,7.101e-05,44856.0,44852.0,0.16]
[1633080018822,7.101e-05,44856.0,44854.0,0.21431419]
[1633080019022,7.101e-05,44856.0,44854.0,0.26431419]
[1633080023023,0.0006,44862.0,44855.0,1.3]
[1633080023227,0.0006,44862.0,44860.0,1.04150868]
[1633080023427,0.0006,44862.0,44860.0,1.69911353]
[1633080024025,0.0006,44862.0,44860.0,1.72141353]
[1633080024428,0.0004,44862.0,44861.0,1.4]
[1633080024625,0.0004,44862.0,44861.0,1.4223]
[1633080024827,0.0004,44862.0,44861.0,1.5223]
[1633080027035,0.06720586,44867.0,44861.0,1.5223]
[1633080027036,0.0006,44876.0,44871.0,0.81640586]
[1633080027237,0.0006,44876.0,44871.0,1.2516253]
[1633080027435,0.0006,44876.0,44871.0,2.5316253]
[1633080028034,0.0006,44876.0,44871.0,3.38201253]
[1633080028035,0.0002,44872.0,44871.0,3.38201253]
[1633080028236,0.0002,44872.0,44871.0,3.88201253]
[1633080028430,0.0002,44872.0,44871.0,3.93321331]
[1633080028630,0.0004,44873.0,44872.0,1.35]
[1633080028831,0.0004,44873.0,44872.0,2.58353794]
[1633080029031,0.0004,44873.0,44872.0,3.58392517]
[1633080029233,0.0006,44880.0,44874.0,1.35]
[1633080029435,0.2277,44891.0,44879.0,1.6012041]
[1633080029636,0.2277,44891.0,44885.0,1.35121689]
[1633080029832,0.2277,44891.0,44885.0,1.37351689]
[1633080030035,0.2277,44891.0,44885.0,1.47351689]
[1633080030432,0.2277,44891.0,44885.0,1.40899553]
[1633080030831,0.2277,44891.0,44885.0,2.58899553]
[1633080031434,0.2277,44891.0,44885.0,1.40899553]
[1633080031636,0.00066811,44886.0,44885.0,1.40899553]
[1633080033835,0.04413751,44888.0,44886.0,0.95]
[1633080034040,0.04413751,44888.0,44887.0,0.9223]
[1633080034638,0.04413751,44888.0,44887.0,1.06272362]
[1633080035258,0.0006,44893.0,44892.0,0.15480349]
[1633080035260,0.0002,44893.0,44892.0,0.15480349]
[1633080035442,0.0002,44893.0,44892.0,0.15460349]
[1633080035643,0.0002,44893.0,44892.0,0.222741]
[1633080039541,0.0002,44893.0,44892.0,0.5758718]
[1633080039941,0.0002,44893.0,44892.0,0.1758718]
[1633080040539,0.0002,44893.0,44892.0,0.2858718]
[1633080041139,0.0002,44893.0,44892.0,0.332741]
[1633080041740,0.0002,44893.0,44892.0,0.632741]
[1633080042342,0.00026826,44893.0,44892.0,0.632741]
[1633080042541,0.00026826,44893.0,44892.0,0.41]
[1633080042742,0.00026826,44893.0,44892.0,0.11]
[1633080043141,0.00150013,44893.0,44892.0,0.11]
[1633080043344,0.22470013,44893.0,44884.0,0.0223]
[1633080043547,0.22470013,44893.0,44878.0,0.1]
[1633080043548,0.00128161,44885.0,44878.0,0.1]
[1633080043746,0.00125921,44879.0,44878.0,0.1]
[1633080044343,0.00125921,44879.0,44874.0,0.1807051]
[1633080044942,0.00125921,44879.0,44874.0,0.4035421]
[1633080045144,0.09143417,44879.0,44874.0,0.4035421]
[1633080045346,0.00125921,44879.0,44874.0,0.4035421]
[1633080045744,0.22208043,44888.0,44874.0,0.4035421]
[1633080045945,0.22208043,44888.0,44876.0,0.33421]
[1633080046149,0.0005301,44887.0,44876.0,0.33421]
[1633080046344,0.0005301,44887.0,44881.0,0.07770822]
[1633080046943,0.12312752,44889.0,44880.0,0.4218239]
[1633080046944,0.0005301,44888.0,44880.0,0.4218239]
[1633080047149,0.0012542,44887.0,44880.0,0.222812]
[1633080047545,0.0005301,44886.0,44880.0,0.222812]
[1633080047745,0.0017843,44887.0,44880.0,0.222812]
[1633080048146,0.0017843,44887.0,44881.0,0.22243444]
[1633080048346,0.0017843,44887.0,44880.0,0.222812]
[1633080048546,0.0005301,44886.0,44880.0,0.222812]
[1633080048948,0.00121262,44881.0,44875.0,0.222802]
[1633080049347,0.00121262,44881.0,44878.0,0.07528416]
[1633080050348,0.17153239,44887.0,44878.0,0.18528416]
[1633080050549,0.00121192,44886.0,44878.0,0.18528416]
[1633080050748,0.00174202,44886.0,44878.0,0.18528416]
[1633080050947,0.00121192,44886.0,44878.0,0.18528416]
[1633080051147,0.00121192,44886.0,44878.0,0.40810216]
[1633080053156,0.00121192,44886.0,44878.0,0.332818]
[1633080054653,0.00121192,44886.0,44878.0,0.667037]
[1633080054852,0.00121192,44886.0,44880.0,0.09894468]
[1633080055257,0.00121192,44886.0,44878.0,0.332818]
[1633080055656,0.00121192,44886.0,44880.0,0.334206]
[1633080056058,0.00121192,44886.0,44880.0,0.18382824]
[1633080056258,0.00121192,44886.0,44881.0,0.07424906]
[1633080058262,0.06485579,44886.0,44881.0,0.07424906]
[1633080058460,0.00121192,44886.0,44881.0,0.07424906]
[1633080058861,0.334225,44889.0,44881.0,0.07424906]
[1633080058862,0.00128658,44888.0,44881.0,0.1628049]
[1633080059661,0.30977382,44887.0,44881.0,0.1628049]
[1633080059865,0.00128658,44888.0,44885.0,0.22307896]
[1633080060063,0.00128658,44888.0,44881.0,0.1628049]
[1633080061063,0.00128658,44888.0,44883.0,0.20167228]
[1633080061664,0.0929694,44891.0,44883.0,0.47716561]
[1633080061863,0.0929694,44891.0,44888.0,0.17527554]
[1633080062064,0.30975802,44890.0,44888.0,0.17527554]
[1633080062466,0.0929694,44891.0,44888.0,0.17527554]
[1633080062868,0.0929694,44891.0,44883.0,0.47716561]
[1633080063070,0.0929694,44891.0,44881.0,0.07424906]
[1633080063267,0.0005301,44890.0,44884.0,0.334177]
[1633080063530,0.00059505,44890.0,44880.0,0.44558932]
[1633080063667,0.00059505,44890.0,44878.0,9.222818]
[1633080063668,0.00121125,44881.0,44878.0,9.0]
[1633080063867,0.00121125,44881.0,44879.0,0.2003184]
[1633080064269,0.21671425,44889.0,44879.0,0.2003184]
[1633080064469,0.00122543,44887.0,44879.0,0.2003184]
[1633080064666,0.00122543,44887.0,44879.0,0.28131938]
[1633080065069,0.0005301,44889.0,44879.0,0.28131938]
[1633080065269,6.495e-05,44890.0,44879.0,0.6585133]
[1633080065466,6.495e-05,44890.0,44879.0,0.66342894]
[1633080065467,0.30982143,44890.0,44879.0,0.66342894]
[1633080065666,6.495e-05,44890.0,44885.0,0.22033409]
[1633080065869,6.495e-05,44890.0,44885.0,0.06546227]
[1633080067066,6.495e-05,44890.0,44886.0,0.07869302]
[1633080067668,6.495e-05,44890.0,44886.0,0.3584147]
[1633080068168,6.495e-05,44890.0,44886.0,0.6925797]
[1633080069372,6.495e-05,44890.0,44888.0,0.334134]
[1633080070367,6.495e-05,44890.0,44888.0,0.26961318]
[1633080071167,6.495e-05,44890.0,44888.0,0.37961318]
[1633080073568,6.495e-05,44890.0,44889.0,1.33353286]
[1633080073769,6.495e-05,44890.0,44889.0,1.51157304]
[1633080073972,6.495e-05,44890.0,44889.0,1.70894993]
[1633080075772,6.495e-05,44890.0,44889.0,0.65894993]
[1633080076172,6.495e-05,44890.0,44889.0,0.68124993]
[1633080076372,6.495e-05,44890.0,44889.0,1.38124993]
[1633080077974,6.495e-05,44890.0,44889.0,0.68124993]
[1633080078177,6.495e-05,44890.0,44889.0,0.39771707]
[1633080078377,6.495e-05,44890.0,44889.0,0.66967689]
[1633080079376,6.495e-05,44890.0,44889.0,0.96967689]
[1633080079978,6.495e-05,44890.0,44889.0,1.26202997]
[1633080080177,6.495e-05,44890.0,44889.0,0.96967689]
[1633080080976,6.495e-05,44890.0,44889.0,0.5723]
[1633080081377,6.495e-05,44890.0,44889.0,0.8723]
[1633080082179,6.495e-05,44890.0,44889.0,0.95592708]
[1633080082379,6.495e-05,44890.0,44889.0,0.65592708]
[1633080083381,6.495e-05,44890.0,44889.0,1.25592708]
[1633080083579,6.495e-05,44890.0,44889.0,0.65592708]
[1633080084383,6.495e-05,44890.0,44889.0,1.00592708]
[1633080084638,6.495e-05,44890.0,44889.0,0.65592708]
[1633080087640,0.0002,44893.0,44890.0,0.6]
[1633080087839,0.00014106,44895.0,44894.0,0.39091053]
[1633080089841,0.00014106,44895.0,44894.0,0.20503309]
[1633080094848,0.06426591,44895.0,44894.0,0.01147179]
[1633080095247,0.06372916,44895.0,44894.0,0.01147179]
[1633080095848,6.325e-05,44895.0,44893.0,0.24749173]
[1633080096248,6.325e-05,44895.0,44894.0,0.334124]
[1633080097656,0.0006,44899.0,44895.0,0.35]
[1633080097856,0.12570522,44900.0,44899.0,0.22621696]
[1633080098057,1.02490502,44905.0,44899.0,0.22621696]
[1633080098657,0.83241605,44905.0,44899.0,0.22621696]
[1633080098857,0.334916,44905.0,44899.0,0.22621696]
[1633080099060,0.334916,44905.0,44900.0,1.01231253]
[1633080099061,0.00141028,44901.0,44900.0,1.01231253]
[1633080099457,0.00141028,44901.0,44900.0,1.11231253]
[1633080101058,0.00141028,44901.0,44900.0,1.22231253]
[1633080101257,0.00141028,44901.0,44900.0,2.40231253]
[1633080102663,0.00141028,44901.0,44900.0,2.40357592]
[1633080103069,0.0006,44904.0,44900.0,2.40357592]
[1633080103070,0.0006,44907.0,44900.0,2.40357592]
[1633080103071,0.0004,44920.0,44919.0,0.11269504]
[1633080103265,0.0004,44920.0,44919.0,0.67415408]
[1633080103460,0.0004,44920.0,44919.0,0.77415408]
[1633080104066,0.0004,44920.0,44919.0,1.87415408]
[1633080105264,0.0004,44920.0,44919.0,0.77415408]
[1633080105862,0.00048377,44920.0,44919.0,0.77415408]
[1633080106064,0.00048377,44920.0,44919.0,1.57415408]
[1633080107461,0.00048377,44920.0,44919.0,0.77415408]
[1633080109065,0.00048377,44920.0,44919.0,1.95415408]
[1633080109464,0.00048377,44920.0,44919.0,0.77415408]
[1633080110069,0.00048377,44920.0,44919.0,2.12415408]
[1633080110266,0.00048377,44920.0,44919.0,1.7141155]
[1633080110469,0.00048377,44920.0,44919.0,2.82963891]
[1633080110967,0.00048377,44920.0,44919.0,1.47963891]
[1633080111372,0.00048377,44920.0,44919.0,1.37963891]
[1633080111769,0.00048377,44920.0,44919.0,0.19963891]
[1633080111971,0.00048377,44920.0,44919.0,1.29963891]
[1633080112169,0.00048377,44920.0,44919.0,2.47963891]
[1633080112569,0.00048377,44920.0,44919.0,2.58963891]
[1633080112769,0.00048377,44920.0,44919.0,2.68963891]
[1633080115170,0.00141002,44924.0,44919.0,2.68963891]
[1633080115171,0.08609379,44928.0,44920.0,1.35]
[1633080115371,0.08609379,44928.0,44927.0,0.20230149]
[1633080115573,0.08609379,44928.0,44927.0,0.00887023]
[1633080115971,0.08609379,44928.0,44927.0,0.30298478]
[1633080116171,0.08617706,44928.0,44927.0,0.30298478]
[1633080116569,0.08617706,44928.0,44927.0,0.28528222]
[1633080118571,0.08457706,44928.0,44927.0,0.28528222]
[1633080119372,0.08457706,44928.0,44927.0,0.00887023]
[1633080119571,0.08457706,44928.0,44927.0,0.28265946]
[1633080120571,0.08457706,44928.0,44927.0,0.00887023]
[1633080121372,0.08457706,44928.0,44927.0,0.29014027]
[1633080121773,0.08457706,44928.0,44927.0,0.00887023]
[1633080122172,0.17246191,44928.0,44927.0,0.00887023]
[1633080122573,0.08457706,44928.0,44927.0,0.00887023]
[1633080123375,0.07457706,44928.0,44927.0,0.35887023]
[1633080123773,0.07457706,44928.0,44927.0,0.00887023]
[1633080123974,0.07457706,44928.0,44927.0,0.28379394]
[1633080124775,0.07457706,44928.0,44927.0,0.00887023]
[1633080125175,0.06207706,44928.0,44927.0,0.00887023]
[1633080125984,0.06207706,44928.0,44927.0,0.19054174]
[1633080126375,0.06207706,44928.0,44927.0,1.43134505]
[1633080129981,0.06207706,44928.0,44927.0,1.45364505]
[1633080130581,0.06207706,44928.0,44927.0,1.26310331]
[1633080132785,1.55650665,44928.0,44927.0,1.19703041]
[1633080132987,1.55650665,44928.0,44919.0,0.37748703]
[1633080132988,2.11333121,44928.0,44919.0,0.37748703]
[1633080133185,2.11333121,44928.0,44919.0,0.15821845]
[1633080133186,0.00252185,44920.0,44919.0,0.15821845]
[1633080133386,0.00305195,44920.0,44919.0,0.33440976]
[1633080133587,0.00122272,44920.0,44919.0,0.33440976]
[1633080133789,0.00092272,44920.0,44919.0,0.33440976]
[1633080133986,0.48364104,44920.0,44919.0,0.33440976]
[1633080134187,0.48364104,44920.0,44919.0,0.58316595]
[1633080134188,0.71102614,44920.0,44919.0,0.58316595]
[1633080134385,0.48782614,44920.0,44919.0,0.58316595]
[1633080134585,0.26097114,44920.0,44919.0,0.58316595]
[1633080134790,0.06443358,44922.0,44919.0,0.91707295]
[1633080134987,0.06207706,44928.0,44920.0,0.17619131]
[1633080134988,0.06442754,44927.0,44920.0,0.17619131]
[1633080135186,0.06442754,44927.0,44920.0,0.19849131]
[1633080135387,0.06442663,44927.0,44921.0,0.17619131]
[1633080135650,0.12650364,44928.0,44922.0,0.0223]
[1633080135848,0.06207706,44928.0,44923.0,0.17619131]
[1633080136049,0.06335306,44928.0,44923.0,0.17619131]
[1633080137249,0.06335306,44928.0,44925.0,0.33388]
[1633080137449,0.06335306,44928.0,44927.0,0.24214954]
[1633080137651,0.06335306,44928.0,44927.0,0.41834085]